[Event "MČR v bleskovém šachu družstev 2019"]
[Site "Teplice, Czech Republic"]
[Date "2019.09.14"]
[Round "12.4"]
[White "Vymazal, Bronislav"]
[Black "Meszaros, Ludek"]
[Result "1-0"]
[TimeControl "3 mim. + 2 s"]
[WhiteFideId "318396"]
[BlackFideId "308153"]
[WhiteElo "2309"]
[BlackElo "2070"]

1. e4 {[%clk 00:03:02]} {[%emt 00:00:01]} e5 {[%clk 00:03:03]} 2. Nf3 {[%clk
00:03:03]} Nc6 {[%clk 00:03:05]} 3. Bb5 {[%clk 00:03:04]} a6 {[%clk 00:03:06]}
4. Ba4 {[%clk 00:03:05]} Nf6 {[%clk 00:03:07]} {[%emt 00:00:03]} 5. O-O {[%clk
00:03:05]} {[%emt 00:00:01]} Be7 {[%clk 00:03:09]} 6. d3 {[%clk 00:03:04]}
{[%emt 00:00:04]} d6 {[%clk 00:03:09]} {[%emt 00:00:01]} 7. c4 {[%clk
00:02:56]} {[%emt 00:00:10]} O-O {[%clk 00:03:07]} {[%emt 00:00:04]} 8. h3
{[%clk 00:02:55]} {[%emt 00:00:04]} h6 {[%clk 00:03:03]} {[%emt 00:00:05]} 9.
Nc3 {[%clk 00:02:55]} {[%emt 00:00:02]} Nd4 {[%clk 00:02:47]} {[%emt 00:00:17]}
10. Nxd4 {[%clk 00:02:55]} {[%emt 00:00:03]} exd4 {[%clk 00:02:48]} {[%emt
00:00:01]} 11. Ne2 {[%clk 00:02:57]} c5 {[%clk 00:02:47]} {[%emt 00:00:03]} 12.
f4 {[%clk 00:02:56]} {[%emt 00:00:03]} Bd7 {[%clk 00:02:40]} {[%emt 00:00:09]}
13. Bxd7 {[%clk 00:02:54]} {[%emt 00:00:04]} Qxd7 {[%clk 00:02:39]} {[%emt
00:00:03]} 14. g4 {[%clk 00:02:28]} {[%emt 00:00:28]} Nh7 {[%clk 00:02:30]}
{[%emt 00:00:10]} 15. Ng3 {[%clk 00:02:21]} {[%emt 00:00:09]} b5 {[%clk
00:02:28]} {[%emt 00:00:04]} 16. b3 {[%clk 00:02:21]} {[%emt 00:00:02]} a5
{[%clk 00:02:23]} {[%emt 00:00:07]} 17. Bd2 {[%clk 00:01:58]} {[%emt 00:00:25]}
a4 {[%clk 00:02:21]} {[%emt 00:00:04]} 18. Nf5 {[%clk 00:01:49]} {[%emt
00:00:11]} Rfe8 {[%clk 00:02:08]} {[%emt 00:00:15]} 19. Qc2 {[%clk 00:01:30]}
{[%emt 00:00:22]} Bf8 {[%clk 00:02:03]} {[%emt 00:00:07]} 20. b4 {[%clk
00:01:17]} {[%emt 00:00:15]} g6 {[%clk 00:01:49]} {[%emt 00:00:16]} 21. Ng3
{[%clk 00:01:17]} {[%emt 00:00:01]} bxc4 {[%clk 00:01:41]} {[%emt 00:00:11]} 22.
Qxc4 {[%clk 00:01:17]} {[%emt 00:00:02]} cxb4 {[%clk 00:01:29]} {[%emt
00:00:12]} 23. Rab1 {[%clk 00:00:57]} {[%emt 00:00:24]} b3 {[%clk 00:01:20]}
{[%emt 00:00:11]} 24. axb3 {[%clk 00:00:56]} {[%emt 00:00:02]} axb3 {[%clk
00:01:08]} {[%emt 00:00:14]} 25. Qxb3 {[%clk 00:00:45]} {[%emt 00:00:13]} h5
{[%clk 00:00:55]} {[%emt 00:00:15]} 26. f5 {[%clk 00:00:41]} {[%emt 00:00:05]}
Reb8 {[%clk 00:00:29]} {[%emt 00:00:28]} 27. Qxb8 {[%clk 00:00:36]} {[%emt
00:00:07]} Rxb8 {[%clk 00:00:30]} 28. Rxb8 {[%clk 00:00:37]} {[%emt 00:00:02]}
Kg7 {[%clk 00:00:24]} {[%emt 00:00:08]} 29. gxh5 {[%clk 00:00:18]} {[%emt
00:00:20]} g5 {[%clk 00:00:06]} {[%emt 00:00:20]} 30. f6+ {[%clk 00:00:12]}
{[%emt 00:00:07]} Nxf6 {[%clk 00:00:06]} {[%emt 00:00:02]} 31. Nf5+ {[%clk
00:00:06]} {[%emt 00:00:08]} Kg8 {[%clk 00:00:06]} {[%emt 00:00:02]} 32. Bxg5
{[%clk 00:00:05]} {[%emt 00:00:03]} Nxh5 {[%clk 00:00:03]} {[%emt 00:00:05]} 33.
Be7 {[%clk 00:00:06]} {[%emt 00:00:01]} Qd8 {[%emt 00:00:17]} 1-0

[Event "MČR v bleskovém šachu družstev 2019"]
[Site "Teplice, Czech Republic"]
[Date "2019.09.14"]
[Round "12.5"]
[White "Babicka, Michal"]
[Black "Vykouk, Jan"]
[Result "0-1"]
[TimeControl "3 mim. + 2 s"]
[BlackTitle "IM"]
[WhiteElo "2076"]
[BlackElo "2439"]

1. c4 {[%clk 00:03:03]} e5 {[%clk 00:03:01]} {[%emt 00:00:03]} 2. b3 {[%clk
00:03:04]} {[%emt 00:00:01]} Nc6 {[%clk 00:02:58]} {[%emt 00:00:05]} 3. Bb2
{[%clk 00:03:05]} g6 {[%clk 00:02:56]} {[%emt 00:00:04]} 4. g3 {[%clk
00:03:05]} {[%emt 00:00:03]} Bg7 {[%clk 00:02:57]} {[%emt 00:00:01]} 5. Bg2
{[%clk 00:03:06]} {[%emt 00:00:01]} Nge7 {[%clk 00:02:57]} {[%emt 00:00:02]} 6.
e3 {[%clk 00:03:06]} {[%emt 00:00:01]} O-O {[%clk 00:02:56]} {[%emt 00:00:03]}
7. Ne2 {[%clk 00:03:07]} {[%emt 00:00:01]} d5 {[%clk 00:02:48]} {[%emt
00:00:11]} 8. cxd5 {[%clk 00:03:07]} {[%emt 00:00:01]} Nxd5 {[%clk 00:02:48]}
{[%emt 00:00:02]} 9. O-O {[%clk 00:03:06]} {[%emt 00:00:04]} Ndb4 {[%clk
00:02:39]} {[%emt 00:00:11]} 10. d4 {[%clk 00:03:05]} {[%emt 00:00:02]} exd4
{[%clk 00:02:39]} {[%emt 00:00:02]} 11. Nxd4 {[%clk 00:03:06]} {[%emt
00:00:01]} Nxd4 {[%clk 00:02:40]} {[%emt 00:00:02]} 12. Bxd4 {[%clk 00:03:07]}
{[%emt 00:00:01]} Bxd4 {[%clk 00:02:40]} {[%emt 00:00:02]} 13. exd4 {[%clk
00:03:08]} Bf5 {[%clk 00:02:32]} {[%emt 00:00:10]} 14. Nc3 {[%clk 00:02:56]}
{[%emt 00:00:14]} c6 {[%clk 00:02:08]} {[%emt 00:00:25]} 15. d5 {[%clk
00:02:51]} {[%emt 00:00:07]} c5 {[%clk 00:01:44]} {[%emt 00:00:27]} 16. a3
{[%clk 00:02:41]} {[%emt 00:00:13]} Nc2 {[%clk 00:01:43]} {[%emt 00:00:02]} 17.
Ra2 {[%clk 00:02:41]} {[%emt 00:00:02]} Nd4 {[%clk 00:01:44]} {[%emt 00:00:02]}
18. b4 {[%clk 00:02:34]} {[%emt 00:00:09]} b6 {[%clk 00:01:45]} {[%emt
00:00:01]} 19. bxc5 {[%clk 00:02:31]} {[%emt 00:00:05]} bxc5 {[%clk 00:01:45]}
{[%emt 00:00:01]} 20. Ne2 {[%clk 00:02:26]} {[%emt 00:00:07]} Bg4 {[%clk
00:01:22]} {[%emt 00:00:25]} 21. f3 {[%clk 00:02:08]} {[%emt 00:00:20]} Qxd5
{[%clk 00:01:23]} {[%emt 00:00:01]} 22. Nxd4 {[%clk 00:02:07]} {[%emt
00:00:04]} Qxa2 {[%clk 00:01:23]} {[%emt 00:00:02]} 23. fxg4 {[%clk 00:02:08]}
Rad8 {[%clk 00:01:01]} {[%emt 00:00:24]} 24. Qb3 {[%clk 00:02:09]} {[%emt
00:00:01]} Qxb3 {[%clk 00:00:58]} {[%emt 00:00:06]} 25. Nxb3 {[%clk 00:02:10]}
{[%emt 00:00:01]} c4 {[%clk 00:00:56]} {[%emt 00:00:04]} 26. Na5 {[%clk
00:02:04]} {[%emt 00:00:08]} c3 {[%clk 00:00:53]} {[%emt 00:00:05]} 27. Rc1
{[%clk 00:02:05]} {[%emt 00:00:01]} Rd3 {[%clk 00:00:43]} {[%emt 00:00:11]} 28.
Nc6 {[%clk 00:01:54]} {[%emt 00:00:13]} Re8 {[%clk 00:00:34]} {[%emt 00:00:12]}
29. Nb4 {[%clk 00:01:26]} {[%emt 00:00:30]} Rde3 {[%clk 00:00:34]} {[%emt
00:00:01]} 30. Bf1 {[%clk 00:01:23]} {[%emt 00:00:04]} Rd8 {[%clk 00:00:28]}
{[%emt 00:00:08]} 31. Bc4 {[%clk 00:01:12]} {[%emt 00:00:14]} Rd2 {[%clk
00:00:21]} {[%emt 00:00:09]} 32. Nd5 {[%clk 00:00:35]} {[%emt 00:00:39]} Rf3
{[%clk 00:00:22]} {[%emt 00:00:01]} 33. Rxc3 {[%clk 00:00:28]} {[%emt
00:00:08]} Rxc3 {[%clk 00:00:19]} {[%emt 00:00:04]} 34. Nxc3 {[%clk 00:00:27]}
{[%emt 00:00:03]} Rc2 {[%clk 00:00:19]} {[%emt 00:00:02]} 35. Nb5 {[%clk
00:00:03]} {[%emt 00:00:26]} Rxc4 {[%clk 00:00:18]} {[%emt 00:00:03]} 36. Nxa7
{[%clk 00:00:04]} {[%emt 00:00:01]} Rxg4 {[%clk 00:00:16]} {[%emt 00:00:04]} 37.
Nc6 {[%clk 00:00:04]} {[%emt 00:00:02]} Ra4 {[%clk 00:00:15]} {[%emt 00:00:03]}
38. Ne5 {[%clk 00:00:05]} {[%emt 00:00:02]} Rxa3 {[%clk 00:00:15]} {[%emt
00:00:02]} 39. Kg2 {[%clk 00:00:06]} Kg7 {[%clk 00:00:15]} {[%emt 00:00:02]} 40.
h4 {[%clk 00:00:07]} f6 {[%clk 00:00:14]} {[%emt 00:00:03]} 41. Nf3 {[%clk
00:00:07]} {[%emt 00:00:02]} h6 {[%clk 00:00:13]} {[%emt 00:00:04]} 42. Nd4
{[%clk 00:00:07]} {[%emt 00:00:02]} f5 {[%clk 00:00:13]} {[%emt 00:00:02]} 43.
h5 {[%clk 00:00:06]} {[%emt 00:00:03]} Ra4 {[%clk 00:00:07]} {[%emt 00:00:08]}
44. Ne6+ {[%clk 00:00:03]} {[%emt 00:00:05]} Kf6 {[%clk 00:00:08]} {[%emt
00:00:01]} 45. Nf4 {[%clk 00:00:04]} {[%emt 00:00:01]} g5 {[%clk 00:00:09]}
{[%emt 00:00:01]} 46. Nd5+ {[%clk 00:00:04]} {[%emt 00:00:02]} Ke5 {[%clk
00:00:09]} {[%emt 00:00:02]} 47. Ne7 {[%clk 00:00:03]} {[%emt 00:00:02]} Ra2+
{[%clk 00:00:09]} {[%emt 00:00:02]} 48. Kf1 {[%clk 00:00:03]} {[%emt 00:00:03]}
Ke4 {[%clk 00:00:08]} {[%emt 00:00:02]} 49. Ng6 {[%clk 00:03:02]} {[%emt
00:00:03]} Ke5 {[%clk 00:03:02]} 0-1

[Event "MČR v bleskovém šachu družstev 2019"]
[Site "Teplice, Czech Republic"]
[Date "2019.09.14"]
[Round "12.6"]
[White "Studnicka, Tomas"]
[Black "Mach, Petr"]
[Result "1/2-1/2"]
[TimeControl "3 mim. + 2 s"]
[WhiteTitle "IM"]
[WhiteElo "2215"]
[BlackElo "1961"]

1. d4 {[%clk 00:03:03]} {[%emt 00:00:01]} d5 {[%clk 00:03:03]} {[%emt
00:00:01]} 2. Bf4 {[%clk 00:03:01]} {[%emt 00:00:03]} c5 {[%clk 00:03:03]}
{[%emt 00:00:02]} 3. e3 {[%clk 00:03:02]} {[%emt 00:00:01]} Nc6 {[%clk
00:03:02]} {[%emt 00:00:03]} 4. c3 {[%clk 00:03:03]} {[%emt 00:00:01]} Nf6
{[%clk 00:02:58]} {[%emt 00:00:06]} 5. Nd2 {[%clk 00:03:04]} {[%emt 00:00:01]}
Qb6 {[%clk 00:02:53]} {[%emt 00:00:07]} 6. Qb3 {[%clk 00:02:56]} {[%emt
00:00:10]} e6 {[%clk 00:02:42]} {[%emt 00:00:13]} 7. Ngf3 {[%clk 00:02:55]}
{[%emt 00:00:03]} Bd7 {[%clk 00:02:34]} {[%emt 00:00:09]} 8. Be2 {[%clk
00:02:48]} {[%emt 00:00:09]} cxd4 {[%clk 00:02:29]} {[%emt 00:00:07]} 9. exd4
{[%clk 00:02:46]} {[%emt 00:00:04]} Be7 {[%clk 00:02:21]} {[%emt 00:00:09]} 10.
O-O {[%clk 00:02:27]} {[%emt 00:00:21]} O-O {[%clk 00:02:21]} {[%emt 00:00:02]}
11. Ne5 {[%clk 00:02:28]} {[%emt 00:00:01]} Nxe5 {[%emt 00:00:13]} 12. dxe5
{[%clk 00:02:00]} {[%emt 00:00:29]} Ne4 {[%clk 00:02:13]} {[%emt 00:00:01]} 13.
Nxe4 {[%clk 00:01:56]} {[%emt 00:00:06]} dxe4 {[%clk 00:02:13]} {[%emt
00:00:01]} 14. Be3 {[%clk 00:01:25]} {[%emt 00:00:33]} Qxb3 {[%clk 00:01:56]}
15. axb3 {[%clk 00:01:26]} a6 {[%clk 00:01:57]} 16. Bd4 {[%clk 00:01:24]}
{[%emt 00:00:05]} Rac8 {[%clk 00:01:47]} {[%emt 00:00:11]} 17. b4 {[%clk
00:01:25]} {[%emt 00:00:01]} Bc6 {[%clk 00:01:37]} {[%emt 00:00:13]} 18. Rfe1
{[%clk 00:01:21]} {[%emt 00:00:06]} Rfd8 {[%clk 00:01:32]} {[%emt 00:00:05]} 19.
Bf1 {[%clk 00:01:15]} {[%emt 00:00:09]} Rd7 {[%clk 00:01:22]} {[%emt 00:00:11]}
20. g3 {[%clk 00:01:16]} {[%emt 00:00:02]} Bxb4 {[%clk 00:01:23]} {[%emt
00:00:01]} 21. Bg2 {[%clk 00:01:15]} {[%emt 00:00:03]} e3 {[%clk 00:01:02]}
{[%emt 00:00:23]} 22. Rxe3 {[%clk 00:00:59]} {[%emt 00:00:18]} Bxg2 {[%clk
00:00:59]} {[%emt 00:00:05]} 23. Kxg2 {[%clk 00:00:59]} {[%emt 00:00:01]} Bc5
{[%clk 00:00:59]} 24. Bxc5 {[%clk 00:00:47]} {[%emt 00:00:16]} Rxc5 {[%clk
00:01:00]} {[%emt 00:00:01]} 25. Rae1 {[%clk 00:00:48]} Rcd5 {[%clk 00:00:50]}
{[%emt 00:00:13]} 26. R1e2 {[%clk 00:00:50]} {[%emt 00:00:02]} Kf8 {[%clk
00:00:50]} {[%emt 00:00:02]} 27. f4 {[%clk 00:00:49]} {[%emt 00:00:02]} Ke7
{[%clk 00:00:49]} {[%emt 00:00:02]} 28. h4 {[%clk 00:00:50]} Rd2 {[%clk
00:00:50]} 29. Kf3 {[%clk 00:00:51]} {[%emt 00:00:01]} Rd1 {[%clk 00:00:44]}
{[%emt 00:00:09]} 30. g4 {[%clk 00:00:50]} {[%emt 00:00:03]} Rh1 {[%clk
00:00:30]} {[%emt 00:00:16]} 31. Kg3 {[%clk 00:00:46]} {[%emt 00:00:06]} Rg1+
{[%clk 00:00:30]} {[%emt 00:00:03]} 32. Kf3 {[%clk 00:00:42]} {[%emt 00:00:06]}
Rh1 {[%clk 00:00:30]} {[%emt 00:00:01]} 33. h5 {[%clk 00:00:40]} {[%emt
00:00:04]} Rh3+ {[%emt 00:00:03]} 34. Ke4 {[%emt 00:00:03]} Rxe3+ {[%clk
00:00:26]} {[%emt 00:00:03]} 35. Kxe3 {[%clk 00:00:42]} {[%emt 00:00:02]} g6
{[%clk 00:00:27]} {[%emt 00:00:01]} 36. Rh2 {[%clk 00:00:40]} {[%emt 00:00:04]}
Rd1 {[%clk 00:00:24]} {[%emt 00:00:05]} 37. b4 {[%clk 00:00:32]} {[%emt
00:00:10]} Re1+ {[%clk 00:00:24]} {[%emt 00:00:02]} 38. Kd4 {[%clk 00:00:32]}
{[%emt 00:00:01]} Rf1 {[%clk 00:00:21]} {[%emt 00:00:05]} 39. Ke4 {[%clk
00:00:33]} {[%emt 00:00:01]} Re1+ {[%clk 00:00:22]} {[%emt 00:00:02]} 1/2-1/2

[Event "MČR v bleskovém šachu družstev 2019"]
[Site "Teplice, Czech Republic"]
[Date "2019.09.14"]
[Round "12.7"]
[White "Popper, Tomas"]
[Black "Cech, Pavel"]
[Result "0-1"]
[TimeControl "3 mim. + 2 s"]
[BlackTitle "IM"]
[WhiteElo "2088"]
[BlackElo "2387"]

1. Nf3 {[%clk 00:03:03]} d5 {[%clk 00:03:03]} {[%emt 00:00:02]} 2. b4 {[%clk
00:03:04]} {[%emt 00:00:01]} Nf6 {[%clk 00:02:58]} {[%emt 00:00:07]} 3. Bb2
{[%clk 00:03:04]} {[%emt 00:00:01]} g6 {[%clk 00:02:59]} {[%emt 00:00:02]} 4.
e3 {[%clk 00:03:05]} {[%emt 00:00:01]} Bg7 {[%clk 00:02:59]} {[%emt 00:00:01]}
5. d4 {[%clk 00:03:07]} O-O {[%clk 00:02:59]} {[%emt 00:00:03]} 6. Nbd2 {[%clk
00:03:08]} b6 {[%clk 00:02:54]} {[%emt 00:00:07]} 7. b5 {[%clk 00:03:08]}
{[%emt 00:00:02]} Bb7 {[%clk 00:02:54]} {[%emt 00:00:02]} 8. c4 {[%clk
00:03:08]} {[%emt 00:00:01]} a6 {[%clk 00:02:52]} {[%emt 00:00:04]} 9. a4
{[%clk 00:03:09]} {[%emt 00:00:01]} Nbd7 {[%clk 00:01:58]} {[%emt 00:00:55]} 10.
Be2 {[%clk 00:03:08]} {[%emt 00:00:03]} c5 {[%clk 00:01:56]} {[%emt 00:00:04]}
11. bxc6 {[%clk 00:03:08]} {[%emt 00:00:02]} Bxc6 {[%clk 00:01:57]} 12. O-O
{[%clk 00:03:07]} {[%emt 00:00:03]} Qb8 {[%clk 00:01:40]} {[%emt 00:00:19]} 13.
Ne5 {[%clk 00:03:05]} {[%emt 00:00:04]} Nxe5 {[%clk 00:01:38]} {[%emt
00:00:04]} 14. dxe5 {[%clk 00:03:05]} {[%emt 00:00:01]} Nd7 {[%clk 00:01:38]}
{[%emt 00:00:02]} 15. f4 {[%clk 00:03:06]} {[%emt 00:00:02]} Nc5 {[%clk
00:01:34]} {[%emt 00:00:06]} 16. Bd4 {[%clk 00:02:51]} {[%emt 00:00:17]} Ne6
{[%clk 00:01:31]} {[%emt 00:00:05]} 17. Bf3 {[%clk 00:02:47]} {[%emt 00:00:06]}
Qb7 {[%clk 00:01:31]} {[%emt 00:00:02]} 18. Rb1 {[%clk 00:02:30]} {[%emt
00:00:19]} Nxd4 {[%clk 00:01:25]} {[%emt 00:00:08]} 19. exd4 {[%clk 00:02:31]}
{[%emt 00:00:02]} dxc4 {[%clk 00:01:19]} {[%emt 00:00:08]} 20. Nxc4 {[%clk
00:02:27]} {[%emt 00:00:06]} Bxf3 {[%clk 00:01:16]} {[%emt 00:00:05]} 21. Rxf3
{[%clk 00:02:26]} {[%emt 00:00:02]} b5 {[%clk 00:01:09]} {[%emt 00:00:10]} 22.
d5 {[%clk 00:02:11]} {[%emt 00:00:17]} Qa7+ {[%clk 00:01:01]} {[%emt 00:00:10]}
23. Ne3 {[%clk 00:02:11]} {[%emt 00:00:01]} bxa4 {[%clk 00:00:49]} {[%emt
00:00:14]} 24. Qxa4 {[%clk 00:02:07]} {[%emt 00:00:07]} Rab8 {[%clk 00:00:50]}
{[%emt 00:00:01]} 25. Rd1 {[%clk 00:01:40]} {[%emt 00:00:28]} Rb2 {[%clk
00:00:47]} {[%emt 00:00:05]} 26. Qd4 {[%clk 00:01:40]} {[%emt 00:00:02]} Qxd4
{[%clk 00:00:38]} {[%emt 00:00:11]} 27. Rxd4 {[%clk 00:01:41]} {[%emt
00:00:01]} Rfb8 {[%clk 00:00:31]} {[%emt 00:00:08]} 28. Ra4 {[%clk 00:01:25]}
{[%emt 00:00:20]} f6 {[%clk 00:00:18]} {[%emt 00:00:15]} 29. Nc4 {[%clk
00:00:46]} {[%emt 00:00:41]} Rb1+ {[%clk 00:00:19]} {[%emt 00:00:01]} 30. Rf1
{[%clk 00:00:44]} {[%emt 00:00:04]} fxe5 {[%clk 00:00:19]} {[%emt 00:00:02]} 31.
Nxe5 {[%clk 00:00:39]} {[%emt 00:00:06]} R1b5 {[%clk 00:00:10]} {[%emt
00:00:11]} 32. Rd1 {[%clk 00:00:27]} {[%emt 00:00:14]} Rb1 {[%clk 00:00:06]}
{[%emt 00:00:06]} 33. Rxb1 {[%clk 00:00:19]} {[%emt 00:00:10]} Rxb1+ {[%clk
00:00:07]} 34. Kf2 {[%clk 00:00:20]} Rd1 {[%clk 00:00:08]} {[%emt 00:00:02]} 35.
Ra5 {[%clk 00:00:13]} {[%emt 00:00:09]} Bf6 {[%clk 00:00:07]} {[%emt 00:00:03]}
36. Ke2 {[%clk 00:00:13]} {[%emt 00:00:01]} Rg1 {[%clk 00:00:08]} {[%emt
00:00:02]} 37. Kf2 {[%clk 00:00:11]} {[%emt 00:00:04]} Rd1 {[%clk 00:00:08]}
{[%emt 00:00:01]} 38. Nf3 {[%clk 00:00:00]} {[%emt 00:00:16]} Kf7 {[%clk
00:00:08]} {[%emt 00:00:02]} 39. Rxa6 {[%clk 00:00:00]} {[%emt 00:00:01]} Rxd5
{[%clk 00:00:08]} {[%emt 00:00:01]} 40. Ra7 {[%clk 00:00:00]} 0-1

[Event "MČR v bleskovém šachu družstev 2019"]
[Site "Teplice, Czech Republic"]
[Date "2019.09.14"]
[Round "12.8"]
[White "Sodoma, Jan"]
[Black "Ocelak, Jakub"]
[Result "1-0"]
[TimeControl "3 mim. + 2 s"]
[WhiteTitle "IM"]
[WhiteElo "2193"]
[BlackElo "1705"]

1. Nf3 {[%clk 00:03:02]} {[%emt 00:00:01]} c5 {[%clk 00:03:03]} {[%emt
00:00:02]} 2. c4 {[%clk 00:03:01]} {[%emt 00:00:02]} Nc6 {[%clk 00:03:03]}
{[%emt 00:00:01]} 3. g3 {[%clk 00:03:02]} {[%emt 00:00:02]} d6 {[%clk
00:03:04]} 4. d4 {[%clk 00:02:59]} {[%emt 00:00:05]} cxd4 {[%clk 00:03:00]}
{[%emt 00:00:07]} 5. Nxd4 {[%clk 00:03:00]} {[%emt 00:00:01]} g6 {[%clk
00:03:01]} 6. Bg2 {[%clk 00:02:59]} {[%emt 00:00:03]} Bd7 {[%clk 00:03:02]} 7.
O-O {[%clk 00:02:48]} {[%emt 00:00:13]} Bg7 {[%clk 00:03:03]} 8. Nc2 {[%clk
00:02:49]} Nf6 {[%clk 00:02:51]} {[%emt 00:00:14]} 9. Nc3 {[%clk 00:02:50]}
{[%emt 00:00:01]} O-O {[%clk 00:02:51]} {[%emt 00:00:02]} 10. h3 {[%clk
00:02:43]} {[%emt 00:00:10]} Rc8 {[%clk 00:02:46]} {[%emt 00:00:07]} 11. b3
{[%clk 00:02:31]} {[%emt 00:00:14]} Ne4 {[%clk 00:02:34]} {[%emt 00:00:15]} 12.
Nxe4 {[%clk 00:02:28]} {[%emt 00:00:05]} Bxa1 {[%clk 00:02:29]} {[%emt
00:00:06]} 13. Nxa1 {[%clk 00:02:28]} {[%emt 00:00:02]} Bf5 {[%clk 00:02:29]}
{[%emt 00:00:03]} 14. Bb2 {[%clk 00:02:25]} {[%emt 00:00:05]} f6 {[%clk
00:02:20]} {[%emt 00:00:12]} 15. Qd5+ {[%clk 00:02:18]} {[%emt 00:00:08]} Kg7
{[%clk 00:02:18]} {[%emt 00:00:04]} 16. g4 {[%clk 00:02:07]} {[%emt 00:00:13]}
Bd7 {[%clk 00:02:15]} {[%emt 00:00:05]} 17. g5 {[%clk 00:02:01]} {[%emt
00:00:08]} Ne5 {[%clk 00:01:50]} {[%emt 00:00:27]} 18. gxf6+ {[%clk 00:02:01]}
{[%emt 00:00:02]} exf6 {[%clk 00:01:48]} {[%emt 00:00:03]} 19. Qxd6 {[%clk
00:01:59]} {[%emt 00:00:04]} Rc6 {[%clk 00:01:47]} {[%emt 00:00:03]} 20. Qd2
{[%clk 00:01:53]} {[%emt 00:00:05]} Qc8 {[%clk 00:01:40]} {[%emt 00:00:11]} 21.
Qc3 {[%clk 00:01:48]} {[%emt 00:00:07]} Re6 {[%clk 00:01:28]} {[%emt 00:00:14]}
22. Nc2 {[%clk 00:01:46]} {[%emt 00:00:03]} Re7 {[%clk 00:01:21]} {[%emt
00:00:10]} 23. Ne3 {[%clk 00:01:38]} {[%emt 00:00:10]} Bc6 {[%clk 00:01:20]}
{[%emt 00:00:03]} 24. Ba3 {[%clk 00:01:16]} {[%emt 00:00:24]} Rfe8 {[%clk
00:00:48]} {[%emt 00:00:34]} 25. Nd6 {[%clk 00:01:08]} {[%emt 00:00:10]} Qc7
{[%clk 00:00:39]} {[%emt 00:00:10]} 26. Ndf5+ {[%clk 00:00:55]} {[%emt
00:00:15]} gxf5 {[%clk 00:00:39]} {[%emt 00:00:02]} 27. Nxf5+ {[%clk 00:00:56]}
{[%emt 00:00:01]} Kf7 {[%clk 00:00:29]} {[%emt 00:00:12]} 28. Bxe7 {[%clk
00:00:44]} {[%emt 00:00:13]} Bxg2 {[%clk 00:00:17]} {[%emt 00:00:15]} 29. Kxg2
{[%clk 00:00:45]} {[%emt 00:00:01]} Rg8+ {[%clk 00:00:14]} {[%emt 00:00:05]} 30.
Kh1 {[%clk 00:00:44]} {[%emt 00:00:02]} Qc6+ {[%clk 00:00:11]} {[%emt
00:00:06]} 31. f3 {[%clk 00:00:42]} {[%emt 00:00:05]} Rg6 {[%clk 00:00:10]}
{[%emt 00:00:03]} 32. Qd2 {[%clk 00:00:35]} {[%emt 00:00:09]} Qe6 {[%clk
00:00:08]} {[%emt 00:00:05]} 33. Qd5 {[%clk 00:00:27]} {[%emt 00:00:08]} Qxd5
{[%clk 00:00:06]} {[%emt 00:00:05]} 34. cxd5 {[%clk 00:00:28]} {[%emt
00:00:01]} Rg5 {[%clk 00:00:07]} {[%emt 00:00:02]} 35. e4 {[%clk 00:00:25]}
{[%emt 00:00:04]} Ng6 {[%clk 00:00:03]} {[%emt 00:00:06]} 36. Bc5 {[%clk
00:00:22]} {[%emt 00:00:05]} Nf4 {[%clk 00:00:03]} {[%emt 00:00:02]} 37. Be3
{[%clk 00:00:21]} {[%emt 00:00:03]} Nxh3 {[%clk 00:00:04]} {[%emt 00:00:02]} 38.
Bxg5 {[%clk 00:00:22]} {[%emt 00:00:02]} 1-0

[Event "MČR v bleskovém šachu družstev 2019"]
[Site "Teplice, Czech Republic"]
[Date "2019.09.14"]
[Round "12.9"]
[White "Jirovsky, Milos"]
[Black "Bujak, Michal"]
[Result "1-0"]
[TimeControl "3 mim. + 2 s"]
[WhiteTitle "GM"]
[WhiteFideId "303224"]
[BlackFideId "316318"]
[WhiteElo "2499"]
[BlackElo "2120"]

1. Nf3 {[%emt 00:11:27]} Nf6 {[%emt 00:00:02]} 2. c4 b6 {[%emt 00:00:06]} 3. g3
Bb7 {[%emt 00:00:03]} 4. Bg2 e5 {[%emt 00:00:06]} 5. O-O {[%emt 00:00:02]} e4
{[%emt 00:00:09]} 6. Nd4 {[%emt 00:00:01]} c5 {[%emt 00:00:07]} 7. Nc2 {[%emt
00:00:01]} d5 {[%emt 00:00:11]} 8. cxd5 {[%emt 00:00:03]} Bxd5 {[%emt
00:00:41]} 9. Nc3 {[%emt 00:00:04]} Bc6 {[%emt 00:00:03]} 10. a3 {[%emt
00:00:07]} Qc7 {[%emt 00:00:17]} 11. Ne3 {[%emt 00:00:07]} Nbd7 {[%emt
00:00:06]} 12. Qc2 {[%emt 00:00:10]} Qb7 {[%emt 00:00:05]} 13. Rd1 {[%emt
00:00:06]} Be7 {[%emt 00:00:06]} 14. Nf5 {[%emt 00:00:02]} Bf8 {[%emt
00:00:06]} 15. Ne3 {[%emt 00:00:21]} Be7 {[%emt 00:00:09]} 16. Rb1 {[%emt
00:00:01]} Rc8 {[%emt 00:00:04]} 17. b4 {[%emt 00:00:04]} cxb4 {[%emt
00:00:16]} 18. axb4 {[%emt 00:00:01]} a6 19. Nf5 {[%emt 00:00:29]} Bf8 {[%emt
00:00:05]} 20. Qb3 {[%emt 00:00:11]} g6 {[%emt 00:00:03]} 21. Nd4 {[%emt
00:00:01]} Bg7 {[%emt 00:00:10]} 22. Nxc6 {[%emt 00:00:03]} Qxc6 {[%emt
00:00:04]} 23. Bb2 {[%emt 00:00:03]} Qc4 {[%emt 00:00:09]} 24. Ba1 {[%emt
00:00:28]} O-O {[%emt 00:00:13]} 25. Qa3 {[%emt 00:00:13]} Rfe8 {[%emt
00:00:07]} 26. Rdc1 {[%emt 00:00:04]} Re6 {[%emt 00:00:17]} 27. Nxe4 {[%emt
00:00:10]} 1-0